[Event "GER-ch Youth-U14w 2022"]
[Site "Willingen"]
[Date "2022.06.05"]
[Round "2.10"]
[White "Hergenroeder, Cora"]
[Black "Heuberger, Sandra"]
[Result "1/2-1/2"]
[ECO "D35"]
[WhiteElo "1453"]
[BlackElo "1101"]
[Annotator "NA RC COMBH"]
[PlyCount "66"]
[EventDate "2022.06.05"]
[EventType "swiss"]
[EventRounds "9"]
[EventCountry "GER"]
[SourceTitle "playchess.com"]
[Source "ChessBase"]
[SourceQuality "1"]
[TimeControl "40/4500+30:900+30"]

1. d4 {[%emt 0:00:00]} d5 {[%emt 0:00:00]} 2. c4 {[%emt 0:00:00]} e6 {[%emt 0:00:00]} 3. cxd5 {[%emt 0:00:00]} exd5 {[%emt 0:00:00]} 4. Nc3 {[%emt 0:00:00]} Nf6 {[%emt 0:00:00]} 5. Bg5 {[%emt 0:00:00]} Be7 {[%emt 0:00:00]} 6. e3 {[%emt 0:00:00]} O-O {[%emt 0:00:00]} 7. Bd3 {[%emt 0:00:00]} Bg4 {[%emt 0:00:00]} 8. Qb3 {[%emt 0:00:00]} b6 {[%emt 0:00:53]} 9. Bxf6 {[%emt 0:00:00]} Bxf6 {[%emt 0:00:32]} 10. Qxd5 {[%emt 0:00:00]} Qxd5 {[%emt 0:05:31]} 11. Nxd5 {[%emt 0:00:00]} Bd8 {[%emt 0:00:47]} 12. h3 {[%emt 0:00:00]} Bc8 {[%emt 0:01:16]} 13. Rc1 {[%emt 0:00:00]} c6 {[%emt 0:01:56]} 14. Nb4 {[%emt 0:00:00]} Bb7 {[%emt 0:02:43]} 15. Be4 {[%emt 0:00:00]} a5 {[%emt 0:03:05]} 16. Nxc6 {[%emt 0:00:00]} Nxc6 {[%emt 0:00:29]} 17. Bxc6 {[%emt 0:00:00]} Rc8 {[%emt 0:00:18]} 18. d5 {[%emt 0:00:00]} Bf6 {[%emt 0:01:47]} 19. b3 {[%emt 0:00:00]} Rfd8 {[%emt 0:03:02]} 20. e4 {[%emt 0:00:00]} Bb2 {[%emt 0:02:34]} 21. Rc4 {[%emt 0:00:00]} Ba6 {[%emt 0:01:26]} 22. Rc2 {[%emt 0:00:19]} Bf6 {[%emt 0:04:51]} 23. Ne2 {[%emt 0:09:18]} Bd3 {[%emt 0:02:41]} 24. Rd2 {[%emt 0:02:52]} Bxe4 {[%emt 0:00:39]} 25. f3 {[%emt 0:01:43]} Bh4+ {[%emt 0:06:22]} 26. Kd1 {[%emt 0:03:49]} Bg6 {[%emt 0:05:13]} 27. g3 {[%emt 0:14:43]} Bg5 {[%emt 0:05:00]} 28. f4 {[%emt 0:05:16]} Be4 {[%emt 0:02:26]} 29. Rh2 {[%emt 0:10:14]} Be7 {[%emt 0:02:25]} 30. Nc3 {[%emt 0:19:35]} Bf3+ {[%emt 0:04:55]} 31. Kc1 {[%emt 0:02:10]} Bc5 {[%emt 0:01:34]} 32. Rd3 {[%emt 0:03:08]} Rxc6 {[%emt 0:06:15]} 33. Rxf3 {[%emt 0:00:11]} Rcd6 {[%emt 0:01:57]} 1/2-1/2

[Event "GER-ch Youth-U14w 2022"]
[Site "Willingen"]
[Date "2022.06.05"]
[Round "2.11"]
[White "Brandt, Greta"]
[Black "Eichhorn, Mathilda"]
[Result "0-1"]
[ECO "A22"]
[WhiteElo "1458"]
[BlackElo "1330"]
[Annotator "NA RC COMBH"]
[PlyCount "88"]
[EventDate "2022.06.05"]
[EventType "swiss"]
[EventRounds "9"]
[EventCountry "GER"]
[SourceTitle "playchess.com"]
[Source "ChessBase"]
[SourceQuality "1"]
[TimeControl "40/4500+30:900+30"]

1. c4 {[%emt 0:00:00]} e5 {[%emt 0:00:00]} 2. Nc3 {[%emt 0:00:00]} Nf6 {[%emt 0:00:00]} 3. g3 {[%emt 0:00:00]} d5 {[%emt 0:00:00]} 4. cxd5 {[%emt 0:00:00]} Nxd5 {[%emt 0:00:00]} 5. Bg2 {[%emt 0:00:00]} Nxc3 {[%emt 0:00:00]} 6. bxc3 {[%emt 0:00:00]} Bc5 {[%emt 0:00:00]} 7. Nf3 {[%emt 0:00:00]} e4 {[%emt 0:00:00]} 8. Qa4+ {[%emt 0:00:00]} Nc6 {[%emt 0:00:00]} 9. Qxe4+ {[%emt 0:00:00]} Be6 {[%emt 0:00:00]} 10. d4 {[%emt 0:02:36]} Be7 {[%emt 0:02:32]} 11. O-O {[%emt 0:00:52]} Bd5 {[%emt 0:07:10]} 12. Qc2 {[%emt 0:02:05]} f6 {[%emt 0:08:51]} 13. e4 {[%emt 0:04:32]} Bf7 {[%emt 0:00:48]} 14. Re1 {[%emt 0:02:09]} O-O {[%emt 0:00:48]} 15. Nh4 {[%emt 0:05:35]} Re8 {[%emt 0:04:01]} 16. Nf5 {[%emt 0:06:33]} Bf8 {[%emt 0:00:19]} 17. Qe2 {[%emt 0:01:43]} Be6 {[%emt 0:09:12]} 18. Qf3 {[%emt 0:04:42]} Qd7 {[%emt 0:09:17]} 19. Bb2 {[%emt 0:02:57]} Na5 {[%emt 0:08:09]} 20. d5 {[%emt 0:03:53]} Bxf5 {[%emt 0:00:27]} 21. Qxf5 {[%emt 0:00:11]} Qxf5 {[%emt 0:00:33]} 22. exf5 {[%emt 0:00:05]} Nc4 {[%emt 0:00:13]} 23. Rxe8 {[%emt 0:00:47]} Rxe8 {[%emt 0:00:07]} 24. Rb1 {[%emt 0:00:48]} Re2 {[%emt 0:00:51]} 25. Bc1 {[%emt 0:00:59]} Re1+ {[%emt 0:00:23]} 26. Bf1 {[%emt 0:00:06]} Nd2 {[%emt 0:00:19]} 27. Bxd2 {[%emt 0:01:39]} Rxb1 {[%emt 0:00:07]} 28. Kg2 {[%emt 0:00:10]} Rd1 {[%emt 0:00:20]} 29. Be3 {[%emt 0:00:31]} Bd6 {[%emt 0:01:17]} 30. Be2 {[%emt 0:00:41]} Rb1 {[%emt 0:02:59]} 31. Kf3 {[%emt 0:01:03]} Be5 {[%emt 0:02:28]} 32. Bc4 {[%emt 0:00:25]} Kh8 {[%emt 0:01:47]} 33. Bf4 {[%emt 0:00:35]} Bxf4 {[%emt 0:00:30]} 34. Kxf4 {[%emt 0:00:07]} Rc1 {[%emt 0:00:07]} 35. Bb3 {[%emt 0:01:05]} Rxc3 {[%emt 0:00:27]} 36. Ke4 {[%emt 0:00:05]} Rc1 {[%emt 0:01:28]} 37. Ke3 {[%emt 0:00:57]} Rh1 {[%emt 0:01:32]} 38. h4 {[%emt 0:00:08]} g6 {[%emt 0:00:31]} 39. Kf4 {[%emt 0:00:30]} Kg7 {[%emt 0:01:09]} 40. Kg4 {[%emt 0:01:13]} Rf1 {[%emt 0:01:58]} 41. f3 {[%emt 0:15:33]} gxf5+ {[%emt 0:16:41]} 42. Kxf5 {[%emt 0:00:13]} Rxf3+ {[%emt 0:00:06]} 43. Ke6 {[%emt 0:00:04]} Rxg3 {[%emt 0:00:12]} 44. Kd7 {[%emt 0:00:11]} Rc3 {[%emt 0:00:10]} 0-1

[Event "GER-ch Youth-U14w 2022"]
[Site "Willingen"]
[Date "2022.06.05"]
[Round "2.12"]
[White "Marrufo, Emilia"]
[Black "Müller, Cosima"]
[Result "0-1"]
[ECO "A45"]
[WhiteElo "998"]
[BlackElo "1389"]
[Annotator "NA RC COMBH"]
[PlyCount "76"]
[EventDate "2022.06.05"]
[EventType "swiss"]
[EventRounds "9"]
[EventCountry "GER"]
[SourceTitle "playchess.com"]
[Source "ChessBase"]
[SourceQuality "1"]
[TimeControl "40/4500+30:900+30"]

1. d4 {[%emt 0:00:00]} Nf6 {[%emt 0:00:00]} 2. Bf4 {[%emt 0:00:00]} d5 {[%emt 0:00:00]} 3. e3 {[%emt 0:00:00]} c5 {[%emt 0:00:00]} 4. c3 {[%emt 0:00:00]} Nc6 {[%emt 0:00:00]} 5. Nf3 {[%emt 0:00:00]} Qb6 {[%emt 0:00:00]} 6. Qc2 {[%emt 0:00:00]} Bf5 {[%emt 0:00:00]} 7. Qb3 {[%emt 0:00:00]} c4 {[%emt 0:00:00]} 8. Qxb6 {[%emt 0:00:33]} axb6 {[%emt 0:00:00]} 9. Nbd2 {[%emt 0:01:26]} b5 {[%emt 0:00:00]} 10. Be2 {[%emt 0:01:57]} b4 {[%emt 0:00:00]} 11. b3 {[%emt 0:01:18]} bxc3 {[%emt 0:00:00]} 12. Nf1 {[%emt 0:01:13]} cxb3 {[%emt 0:00:00]} 13. e4 {[%emt 0:03:04]} b2 {[%emt 0:00:00]} 14. Rb1 {[%emt 0:00:57]} Bxe4 {[%emt 0:00:00]} 15. Rd1 {[%emt 0:01:10]} c2 {[%emt 0:00:00]} 16. Rd2 {[%emt 0:00:59]} b1=Q+ {[%emt 0:00:00]} 17. Rd1 {[%emt 0:00:48]} cxd1=Q+ 18. Bxd1 {[%emt 0:00:15]} Bc2 {[%emt 0:00:00]} 19. Ne3 {[%emt 0:00:44]} Bxd1 {[%emt 0:00:00]} 20. Nxd1 {[%emt 0:00:10]} Rxa2 {[%emt 0:00:00]} 21. O-O {[%emt 0:00:32]} Qf5 {[%emt 0:00:00]} 22. Bg3 {[%emt 0:00:54]} Ra1 {[%emt 0:00:00]} 23. h3 {[%emt 0:01:02]} Qd3 {[%emt 0:00:26]} 24. Ne3 {[%emt 0:01:37]} Rxf1+ {[%emt 0:00:22]} 25. Nxf1 {[%emt 0:00:13]} Nxd4 {[%emt 0:00:16]} 26. N3d2 {[%emt 0:01:27]} Ne2+ {[%emt 0:01:16]} 27. Kh2 {[%emt 0:05:14]} Nxg3 {[%emt 0:00:10]} 28. fxg3 {[%emt 0:00:18]} Ne4 {[%emt 0:00:08]} 29. Nxe4 {[%emt 0:01:50]} dxe4 {[%emt 0:00:04]} 30. Kg1 {[%emt 0:00:17]} e3 {[%emt 0:00:05]} 31. Nh2 {[%emt 0:00:32]} e2 {[%emt 0:00:11]} 32. Nf3 {[%emt 0:00:31]} Qd1+ {[%emt 0:00:14]} 33. Kf2 {[%emt 0:00:13]} e6 {[%emt 0:00:26]} 34. g4 {[%emt 0:00:48]} Bc5+ {[%emt 0:00:24]} 35. Kg3 {[%emt 0:00:31]} e1=Q+ {[%emt 0:00:20]} 36. Nxe1 {[%emt 0:00:06]} Qxe1+ {[%emt 0:00:07]} 37. Kf3 {[%emt 0:00:19]} Qf2+ {[%emt 0:00:00]} 38. Ke4 {[%emt 0:00:14]} Qe3# 0-1

[Event "GER-ch Youth-U14w 2022"]
[Site "Willingen"]
[Date "2022.06.05"]
[Round "2.13"]
[White "Modali, Nikhilamrutha"]
[Black "Margaryan, Sofia"]
[Result "0-1"]
[ECO "B01"]
[WhiteElo "1262"]
[BlackElo "1181"]
[Annotator "NA RC COMBH"]
[PlyCount "154"]
[EventDate "2022.06.05"]
[EventType "swiss"]
[EventRounds "9"]
[EventCountry "GER"]
[SourceTitle "playchess.com"]
[Source "ChessBase"]
[SourceQuality "1"]
[TimeControl "40/4500+30:900+30"]

1. e4 {[%emt 0:00:00]} d5 {[%emt 0:00:00]} 2. exd5 {[%emt 0:00:00]} Qxd5 {[%emt 0:00:00]} 3. Nc3 {[%emt 0:00:00]} Qa5 4. d4 c6 {[%emt 0:00:00]} 5. Bd2 {[%emt 0:00:00]} Bf5 {[%emt 0:00:00]} 6. Nf3 {[%emt 0:00:00]} e6 {[%emt 0:00:00]} 7. Nh4 {[%emt 0:05:35]} Bg6 {[%emt 0:00:00]} 8. Bc4 {[%emt 0:05:12]} Qc7 {[%emt 0:00:00]} 9. Nxg6 {[%emt 0:04:36]} hxg6 {[%emt 0:00:00]} 10. h3 {[%emt 0:00:05]} Nd7 {[%emt 0:00:00]} 11. Ne4 {[%emt 0:03:56]} O-O-O {[%emt 0:00:00]} 12. Qf3 {[%emt 0:03:19]} Ndf6 {[%emt 0:00:00]} 13. Bf4 {[%emt 0:05:33]} Qd7 {[%emt 0:00:00]} 14. O-O-O {[%emt 0:01:03]} Nxe4 {[%emt 0:00:00]} 15. Qxe4 {[%emt 0:00:09]} Nf6 {[%emt 0:00:00]} 16. Qf3 {[%emt 0:04:14]} Bd6 {[%emt 0:00:00]} 17. Bg5 {[%emt 0:02:01]} Be7 {[%emt 0:00:00]} 18. Rhe1 {[%emt 0:05:50]} Nd5 {[%emt 0:07:54]} 19. Bd2 {[%emt 0:04:41]} Bf6 {[%emt 0:04:27]} 20. Ba5 {[%emt 0:04:04]} Rde8 {[%emt 0:01:40]} 21. Qg3 {[%emt 0:06:01]} Rh5 {[%emt 0:04:08]} 22. Qa3 {[%emt 0:09:21]} Be7 {[%emt 0:05:02]} 23. Qf3 {[%emt 0:05:00]} Rf8 {[%emt 0:02:46]} 24. g4 {[%emt 0:01:08]} Rh6 {[%emt 0:00:26]} 25. Bxd5 {[%emt 0:01:10]} exd5 {[%emt 0:00:31]} 26. Re2 {[%emt 0:04:01]} Rhh8 {[%emt 0:07:01]} 27. Kb1 {[%emt 0:02:51]} f5 {[%emt 0:03:05]} 28. Qg3 {[%emt 0:01:28]} Bd6 {[%emt 0:01:15]} 29. Qg2 {[%emt 0:01:18]} f4 {[%emt 0:00:38]} 30. f3 {[%emt 0:00:20]} g5 {[%emt 0:00:21]} 31. Rde1 {[%emt 0:00:34]} Re8 {[%emt 0:00:26]} 32. Qh2 {[%emt 0:01:35]} Bc7 {[%emt 0:01:54]} 33. Bxc7 {[%emt 0:01:42]} Kxc7 {[%emt 0:00:13]} 34. c3 {[%emt 0:00:51]} Qf7 {[%emt 0:00:31]} 35. Re5 {[%emt 0:01:20]} Rxe5 {[%emt 0:00:31]} 36. Rxe5 {[%emt 0:00:13]} Qg6+ {[%emt 0:00:12]} 37. Ka1 {[%emt 0:00:06]} Re8 {[%emt 0:00:19]} 38. h4 {[%emt 0:03:10]} Rxe5 {[%emt 0:01:05]} 39. dxe5 {[%emt 0:00:06]} Qd3 {[%emt 0:00:59]} 40. a3 Qxf3 {[%emt 0:00:23]} 41. hxg5 {[%emt 0:00:00]} Qxg4 {[%emt 0:00:00]} 42. g6 {[%emt 0:00:00]} Qxg6 {[%emt 0:00:00]} 43. Qxf4 {[%emt 0:00:00]} Kd7 {[%emt 0:00:00]} 44. Qe3 {[%emt 0:00:00]} b6 {[%emt 0:00:00]} 45. Qh3+ {[%emt 0:00:00]} Qe6 {[%emt 0:00:00]} 46. Qh5 {[%emt 0:00:00]} Ke7 {[%emt 0:00:00]} 47. Qg5+ {[%emt 0:00:00]} Kf8 {[%emt 0:00:00]} 48. Qd8+ {[%emt 0:00:00]} Qe8 {[%emt 0:00:00]} 49. Qd6+ {[%emt 0:00:00]} Qe7 {[%emt 0:00:00]} 50. Qxc6 {[%emt 0:00:00]} Qxe5 {[%emt 0:00:00]} 51. Qa8+ {[%emt 0:00:00]} Qe8 {[%emt 0:00:00]} 52. Qxa7 {[%emt 0:00:00]} Qd8 {[%emt 0:00:00]} 53. Qa6 {[%emt 0:00:00]} g5 {[%emt 0:00:00]} 54. Qf1+ {[%emt 0:00:23]} Kg7 {[%emt 0:00:00]} 55. Qd3 {[%emt 0:01:22]} Qf6 {[%emt 0:01:34]} 56. Qxd5 {[%emt 0:01:03]} Qf1+ {[%emt 0:00:16]} 57. Ka2 {[%emt 0:00:06]} Qf7 {[%emt 0:00:08]} 58. c4 {[%emt 0:01:07]} Qxd5 {[%emt 0:00:18]} 59. cxd5 {[%emt 0:00:06]} Kf6 {[%emt 0:00:05]} 60. Kb3 {[%emt 0:00:09]} g4 {[%emt 0:00:10]} 61. d6 {[%emt 0:00:18]} Ke6 {[%emt 0:00:08]} 62. Kb4 {[%emt 0:02:21]} g3 {[%emt 0:00:07]} 63. Kb5 {[%emt 0:00:18]} g2 {[%emt 0:00:11]} 64. Kxb6 {[%emt 0:00:08]} g1=Q+ {[%emt 0:02:55]} 65. Kc6 {[%emt 0:00:48]} Qd1 {[%emt 0:00:18]} 66. b4 {[%emt 0:00:08]} Qxd6+ {[%emt 0:00:11]} 67. Kb5 {[%emt 0:00:16]} Qd3+ {[%emt 0:01:39]} 68. Ka4 {[%emt 0:00:13]} Kd6 {[%emt 0:00:31]} 69. Ka5 Qxa3+ 70. Kb5 {[%emt 0:01:22]} Qa7 {[%emt 0:00:38]} 71. Kc4 {[%emt 0:00:17]} Qb6 {[%emt 0:01:04]} 72. b5 {[%emt 0:00:21]} Qc5+ {[%emt 0:00:13]} 73. Kb3 {[%emt 0:00:09]} Qxb5+ {[%emt 0:00:10]} 74. Ka2 {[%emt 0:00:04]} Kd5 {[%emt 0:00:09]} 75. Ka3 {[%emt 0:00:10]} Kc4 {[%emt 0:00:09]} 76. Ka2 {[%emt 0:00:03]} Kc3 {[%emt 0:00:26]} 77. Ka1 {[%emt 0:00:07]} Qb2# 0-1

[Event "GER-ch Youth-U14w 2022"]
[Site "Willingen"]
[Date "2022.06.05"]
[Round "2.14"]
[White "Hoffmann, Sophia"]
[Black "Funke, Luise"]
[Result "1-0"]
[ECO "D02"]
[WhiteElo "1289"]
[BlackElo "970"]
[Annotator "NA RC COMBH"]
[PlyCount "61"]
[EventDate "2022.06.05"]
[EventType "swiss"]
[EventRounds "9"]
[EventCountry "GER"]
[SourceTitle "playchess.com"]
[Source "ChessBase"]
[SourceQuality "1"]
[TimeControl "40/4500+30:900+30"]

1. d4 {[%emt 0:00:00]} d5 {[%emt 0:00:00]} 2. Nf3 {[%emt 0:00:00]} e6 {[%emt 0:00:00]} 3. Bf4 {[%emt 0:00:00]} Nf6 {[%emt 0:00:00]} 4. e3 {[%emt 0:00:00]} Bd6 {[%emt 0:00:00]} 5. Bg3 {[%emt 0:00:00]} c5 {[%emt 0:00:00]} 6. c4 {[%emt 0:00:00]} b6 {[%emt 0:00:00]} 7. Nc3 {[%emt 0:00:00]} O-O {[%emt 0:00:00]} 8. Bd3 {[%emt 0:00:00]} Nc6 {[%emt 0:00:00]} 9. O-O Bb7 {[%emt 0:00:00]} 10. Bh4 {[%emt 0:00:00]} Be7 {[%emt 0:00:00]} 11. dxc5 {[%emt 0:02:17]} bxc5 {[%emt 0:00:00]} 12. Bxf6 {[%emt 0:00:28]} Bxf6 {[%emt 0:00:00]} 13. cxd5 {[%emt 0:00:39]} exd5 {[%emt 0:00:00]} 14. Nxd5 {[%emt 0:00:57]} Bxb2 {[%emt 0:00:00]} 15. Rb1 {[%emt 0:00:54]} Nb4 {[%emt 0:00:00]} 16. Nxb4 {[%emt 0:00:48]} cxb4 {[%emt 0:00:41]} 17. Rxb2 {[%emt 0:03:18]} Qe7 {[%emt 0:02:13]} 18. e4 {[%emt 0:03:46]} Rab8 {[%emt 0:00:51]} 19. Qb3 {[%emt 0:01:40]} Bc8 {[%emt 0:00:37]} 20. a3 {[%emt 0:03:43]} Be6 21. Qa4 {[%emt 0:22:06]} b3 {[%emt 0:01:56]} 22. Nd4 Qg5 {[%emt 0:01:01]} 23. Nxe6 {[%emt 0:07:07]} fxe6 {[%emt 0:00:27]} 24. Rxb3 {[%emt 0:01:23]} Rbd8 {[%emt 0:00:37]} 25. Bc4 {[%emt 0:03:10]} Rf6 {[%emt 0:00:35]} 26. Qxa7 {[%emt 0:02:34]} Rg6 {[%emt 0:00:36]} 27. Rg3 {[%emt 0:02:38]} Qh5 {[%emt 0:00:55]} 28. Bxe6+ Kh8 {[%emt 0:01:21]} 29. Bf7 {[%emt 0:04:10]} Rd1 {[%emt 0:01:09]} 30. Qa8+ {[%emt 0:00:27]} Rd8 {[%emt 0:00:08]} 31. Qxd8# {[%emt 0:00:05]} 1-0

[Event "GER-ch Youth-U14w 2022"]
[Site "Willingen"]
[Date "2022.06.05"]
[Round "2.15"]
[White "Lorenz, Rebecca"]
[Black "Göb, Franziska"]
[Result "1-0"]
[ECO "C54"]
[WhiteElo "733"]
[BlackElo "1362"]
[Annotator "NA RC COMBH"]
[PlyCount "54"]
[EventDate "2022.06.05"]
[EventType "swiss"]
[EventRounds "9"]
[EventCountry "GER"]
[SourceTitle "playchess.com"]
[Source "ChessBase"]
[SourceQuality "1"]
[TimeControl "40/4500+30:900+30"]

1. e4 {[%emt 0:00:00]} e5 {[%emt 0:00:00]} 2. Nf3 {[%emt 0:00:00]} Nc6 {[%emt 0:00:00]} 3. Bc4 {[%emt 0:00:00]} Bc5 {[%emt 0:00:00]} 4. c3 {[%emt 0:00:00]} Nf6 {[%emt 0:00:00]} 5. d4 {[%emt 0:00:00]} exd4 {[%emt 0:00:00]} 6. cxd4 {[%emt 0:00:00]} Bb4+ {[%emt 0:00:00]} 7. Nc3 {[%emt 0:00:00]} Nxe4 {[%emt 0:00:00]} 8. O-O {[%emt 0:00:00]} Bxc3 {[%emt 0:00:00]} 9. Qd3 {[%emt 0:00:00]} d5 {[%emt 0:00:00]} 10. bxc3 {[%emt 0:00:00]} O-O {[%emt 0:00:00]} 11. Bb5 {[%emt 0:00:00]} Qd6 {[%emt 0:00:00]} 12. Re1 {[%emt 0:00:00]} Qg6 {[%emt 0:00:00]} 13. c4 {[%emt 0:00:00]} Nb4 {[%emt 0:02:58]} 14. Qb3 {[%emt 0:00:00]} Bh3 {[%emt 0:03:56]} 15. g3 {[%emt 0:00:00]} Qf5 {[%emt 0:03:19]} 16. Re3 {[%emt 0:00:00]} a5 {[%emt 0:06:04]} 17. cxd5 {[%emt 0:00:44]} Nxd5 {[%emt 0:02:45]} 18. Rd3 {[%emt 0:01:08]} c6 {[%emt 0:01:36]} 19. Ba3 {[%emt 0:00:55]} Rfe8 {[%emt 0:00:51]} 20. Bc4 {[%emt 0:01:11]} b5 {[%emt 0:00:17]} 21. Bxd5 {[%emt 0:01:44]} cxd5 {[%emt 0:00:59]} 22. Qxb5 {[%emt 0:01:15]} g5 {[%emt 0:02:24]} 23. Re1 {[%emt 0:04:02]} g4 {[%emt 0:01:21]} 24. Ree3 {[%emt 0:00:54]} gxf3 {[%emt 0:01:14]} 25. Rxf3 {[%emt 0:00:25]} Qg6 {[%emt 0:01:27]} 26. Qxd5 {[%emt 0:02:01]} Nc3 {[%emt 0:03:12]} 27. Rxc3 {[%emt 0:00:40]} Re1# {[%emt 0:00:20]} 1-0

[Event "GER-ch Youth-U14w 2022"]
[Site "Willingen"]
[Date "2022.06.06"]
[Round "3.1"]
[White "Peglau, Dora"]
[Black "Jacobasch, Ronja"]
[Result "1-0"]
[ECO "E81"]
[WhiteElo "2008"]
[BlackElo "1441"]
[Annotator "TA"]
[PlyCount "72"]
[EventDate "2022.06.05"]
[EventType "swiss"]
[EventRounds "9"]
[EventCountry "GER"]
[SourceTitle "playchess.com"]
[Source "ChessBase"]
[SourceQuality "1"]
[TimeControl "40/4500+30:900+30"]

{[%evp 14,72,52,47,51,31,35,35,29,6,6,-2,78,55,82,73,98,87,121,99,107,43,90,92,139,164,313,320,612,603,639,629,813,491,482,468,467,460,453,425,433,417,428,418,471,468,600,604,587,502,502,495,831,805,1555,1308,5758,5795,2995,2261,29964]} 1. d4 {[%emt 0:00:00]} Nf6 {[%emt 0:00:00]} 2. c4 {[%emt 0:00:00]} g6 {[%emt 0:00:00]} 3. f3 {[%emt 0:00:00]} Bg7 {[%emt 0:00:00]} 4. e4 {[%emt 0:00:00]} d6 {[%emt 0:00:00]} 5. Nc3 {[%emt 0:00:00]} O-O {[%emt 0:00:00]} 6. Be3 {[%emt 0:00:00]} a6 {[%emt 0:00:00]} 7. Qd2 {[%emt 0:00:00]} Nbd7 {[%emt 0:00:00]} 8. Nh3 {[%emt 0:00:00]} c5 {[%emt 0:00:00] E81: King's Indian: Sämisch: 6th move deviations (including 6 Be3 c6).} 9. Nf2 {[%emt 0:00:00]} cxd4 {[%emt 0:00:00]} 10. Bxd4 {[%emt 0:00:00]} Ne5 {[%emt 0:02:43] White is slightly better.} 11. Be2 {[%emt 0:00:00]} Be6 {[%emt 0:01:52]} 12. b3 {[%emt 0:00:00] [#]} Qc7 $146 {[%emt 0:14:54]} (12... Qa5 $11) ({Predecessor:} 12... b5 13. cxb5 Qa5 14. f4 Bh6 15. Be3 Ned7 16. bxa6 Bxb3 17. Rc1 Be6 18. g4 Bg7 19. f5 Rac8 20. fxe6 fxe6 21. O-O Ne5 22. Nd5 Qd8 23. Rxc8 {1-0 (23) Parligras,M (2605)-Antic,D (2495) Budva 2009}) 13. O-O $16 {[%emt 0:01:16]} Nc6 {[%emt 0:01:58][%cal Of6e4] [#] ...Nxe4! is the strong threat.} 14. Be3 $1 {[%emt 0:02:12]} Rac8 {[%emt 0:05:35]} 15. Rac1 {[%emt 0:00:43]} Qb8 {[%emt 0:05:40]} (15... Qa5) 16. Nd3 {[%emt 0:05:24]} Bd7 {[%emt 0:08:23]} 17. f4 {[%emt 0:01:04]} ({Better is} 17. Rfd1 $16) 17... e6 {[%emt 0:08:23]} (17... Bg4 $14 {is more appropriate.}) 18. g4 {[%emt 0:08:01][%cal Bg2g4,Bg4g5][%mdl 32] White is more active. White leaves nothing to chance now.} e5 {[%emt 0:06:38]} (18... Ne7) ({Black should try} 18... Ne8) 19. f5 {[%emt 0:02:37]} Rfe8 {[%emt 0:02:57]} (19... Kh8 {might work better.} 20. g5 Nxe4 21. Nxe4 gxf5) 20. g5 $18 {[%emt 0:02:33]} Nh5 {[%emt 0:01:22]} (20... Nxe4 21. Nxe4 Bxf5) 21. Bxh5 {[%emt 0:01:19]} gxh5 {[%emt 0:00:06]} 22. Qe2 {[%emt 0:03:38]} f6 {[%emt 0:07:04]} 23. gxf6 {[%emt 0:02:08]} Bxf6 {[%emt 0:01:12]} 24. Nd5 {[%emt 0:00:19]} Rf8 {[%emt 0:05:38]} 25. Bh6 {[%emt 0:04:13]} ({Don't do} 25. Nxf6+ Rxf6 26. Qxh5 Rcf8 $18) 25... Kh8 {[%emt 0:10:41]} 26. Bxf8 {[%emt 0:01:54]} Rxf8 {[%emt 0:00:11]} 27. Nxf6 {[%emt 0:02:53]} Rxf6 {[%emt 0:00:13]} 28. Qxh5 {[%emt 0:01:05]} Qg8+ {[%emt 0:01:36]} 29. Kh1 {[%emt 0:00:19] White is clearly winning.} Be8 {[%emt 0:00:42]} 30. Qh4 {[%emt 0:00:15]} Qf8 {[%emt 0:00:59]} 31. Rf2 {[%emt 0:06:02]} Nd4 {[%emt 0:00:36]} 32. Rg1 {[%emt 0:01:37] And now Rfg2 would win.} Rf7 {[%emt 0:01:07]} (32... Nxf5 $142 33. Rxf5 Rxf5 34. exf5 Bc6+ 35. Rg2 b5) 33. Rfg2 {[%emt 0:02:07]} Nc6 {[%emt 0:00:47]} 34. Qg3 {[%emt 0:02:44] Intending Qg8+ and mate.} Ne7 {[%emt 0:00:12] [#] Prevents Qg8+.} 35. Nxe5 $1 {[%emt 0:00:37]} Rf6 {[%emt 0:00:54]} 36. Ng4 {[%emt 0:00:40]} Rf7 {[%emt 0:00:00] Weighted Error Value: White=0.23 (precise) /Black=0.48} 1-0

[Event "GER-ch Youth-U14w 2022"]
[Site "Willingen"]
[Date "2022.06.06"]
[Round "3.2"]
[White "Lorenz, Veronika"]
[Black "Wartenberg, Alissa"]
[Result "1-0"]
[ECO "C02"]
[WhiteElo "1510"]
[BlackElo "1741"]
[Annotator "NA COMBH RC"]
[PlyCount "61"]
[EventDate "2022.06.05"]
[EventType "swiss"]
[EventRounds "9"]
[EventCountry "GER"]
[SourceTitle "playchess.com"]
[Source "ChessBase"]
[SourceQuality "1"]
[TimeControl "40/4500+30:900+30"]

1. e4 {[%emt 0:00:00]} c5 {[%emt 0:00:00]} 2. Nf3 {[%emt 0:00:00]} e6 {[%emt 0:00:00]} 3. c3 {[%emt 0:00:00]} Nc6 {[%emt 0:00:00]} 4. d4 {[%emt 0:00:00]} d5 {[%emt 0:00:00]} 5. e5 {[%emt 0:00:00]} Qb6 {[%emt 0:02:36]} 6. Bd3 {[%emt 0:00:00]} Bd7 {[%emt 0:00:46]} 7. dxc5 {[%emt 0:00:00]} Bxc5 {[%emt 0:00:10]} 8. O-O {[%emt 0:00:00]} Qc7 {[%emt 0:06:54]} 9. b4 {[%emt 0:00:00]} Bb6 {[%emt 0:00:17]} 10. Re1 {[%emt 0:00:00]} Nge7 {[%emt 0:04:51]} 11. a4 {[%emt 0:06:21]} a6 {[%emt 0:04:17]} 12. h4 {[%emt 0:06:23]} Ng6 {[%emt 0:07:07]} 13. Qe2 {[%emt 0:03:07]} d4 {[%emt 0:12:00]} 14. h5 {[%emt 0:09:40]} Nge7 {[%emt 0:08:52]} 15. Ba3 {[%emt 0:02:01]} Nd5 {[%emt 0:04:05]} 16. b5 {[%emt 0:04:35]} Na5 {[%emt 0:02:04]} 17. cxd4 {[%emt 0:06:08]} Nb3 {[%emt 0:00:39]} 18. Ra2 {[%emt 0:02:58]} Nxd4 {[%emt 0:01:23]} 19. Nxd4 {[%emt 0:00:46]} Bxd4 {[%emt 0:00:04]} 20. Bd6 {[%emt 0:13:24]} Qa5 {[%emt 0:04:28]} 21. Rc1 {[%emt 0:03:57]} axb5 {[%emt 0:04:21]} 22. Qg4 {[%emt 0:01:57]} g6 {[%emt 0:11:09]} 23. Qxd4 {[%emt 0:01:09]} bxa4 {[%emt 0:01:32]} 24. Qh4 {[%emt 0:07:22]} gxh5 {[%emt 0:02:23]} 25. Be4 {[%emt 0:02:15]} Qd8 {[%emt 0:01:46]} 26. Qxd8+ {[%emt 0:01:39]} Kxd8 {[%emt 0:00:04]} 27. Bxd5 {[%emt 0:00:12]} exd5 {[%emt 0:00:04]} 28. Rc7 {[%emt 0:01:29]} b5 {[%emt 0:00:37]} 29. Nc3 {[%emt 0:01:19]} d4 {[%emt 0:00:32]} 30. Nd5 {[%emt 0:00:34]} Be6 {[%emt 0:00:17] #1} 31. Be7+ {[%emt 0:00:10]} 1-0